fUST/lending_fUST_20250721
["ID","MTS","AMOUNT","RATE_DAILY","PERIOD"]
[373782129,1753111841829,-331.7,0.000224,7]
[373782131,1753111841839,-500.0,0.00022473,2]
[373782133,1753111841848,-500.0,0.00022473,2]
[373782135,1753111841857,-500.0,0.00022473,2]
[373782137,1753111841866,-607.1850976,0.00022473,2]
[373782139,1753111841875,-500.0,0.00022473,2]
[373782141,1753111841884,-500.0,0.00022473,2]
[373782143,1753111841893,-3718.51382195,0.0002249,7]
[373782145,1753111841905,-53891.35043109,0.0002249,7]
[373782147,1753111841917,-30824.66692295,0.0002249,7]
[373782149,1753111841928,-6804.21891218,0.0002249,7]
[373782151,1753111841938,-1522.92746099,0.000225,7]
[373782153,1753111841949,-775.31253901,0.000225,7]
[373782155,1753111841958,-460.0,0.00022511,2]
[373782157,1753111841968,-377.25746099,0.000226,4]
[373782160,1753111841979,-244.36592541,0.000226,4]
[373782162,1753111841988,-246.173512,0.00022603,2]
[373782163,1753111841999,-397.56363683,0.0002261,2]
[373782307,1753111843518,-62.43636317,0.0002261,2]
[373782309,1753111843528,-460.0,0.00022611,2]
[373782311,1753111843539,-460.0,0.00022611,2]
[373782313,1753111843548,-567.52,0.00022611,2]
[373782315,1753111843558,-460.0,0.00022612,2]
[373782317,1753111843567,-460.0,0.00022612,2]
[373782319,1753111843576,-460.0,0.00022614,2]
[373782321,1753111843586,-460.0,0.00022785,2]
[373782323,1753111843595,-504.62,0.0002279,7]
[373782325,1753111843605,-460.0,0.00022794,2]
[373782327,1753111843615,-1000.0,0.000228,10]
[373782329,1753111843624,-201.8,0.00022848,6]
[373782330,1753111843633,-416.71894137,0.00022884,2]
[373782333,1753111843654,-43.28105863,0.00022884,2]
[373782335,1753111843663,-286.71811172,0.00022885,2]
[373782646,1753111846625,-1497.34769046,0.00022465,2]
[373786080,1753111883645,150.0,0.00012511,2]
[373788000,1753111903779,236.2191611,0.00019274,2]
[373789065,1753112141007,161.857148,0.00013699,2]
[373789088,1753112734148,-215.36508961,0.000195,2]
[373789089,1753112734172,-160.0,0.00019865,2]
[373789090,1753112734195,-300.0,0.00019867,2]
[373789091,1753112734220,-231.02460978,0.00019867,2]
[373789092,1753112734242,-160.0,0.00019868,2]
[373789093,1753112734264,-3089.83005584,0.00019868,2]
[373789099,1753112848266,-473.37436611,0.000189,2]
[373789100,1753112848343,-325.36213468,0.00019271,2]
[373789101,1753112848419,-210.91217916,0.00019769,2]
[373789103,1753112933014,150.0,0.00015505,2]
[373789105,1753112936831,1000.0,0.00023,30]
[373789106,1753112975043,785.54,0.00027397,120]
[373789107,1753113018751,1000.0,0.0002739,120]
[373789276,1753113039046,-186.864103,0.00019178,2]
[373789278,1753113039056,-102.64341272,0.00019769,2]
[373789280,1753113039067,-300.0,0.00019866,2]
[373789282,1753113039076,-300.0,0.00019866,2]
[373789284,1753113039087,-1200.0,0.00019866,2]
[373789286,1753113039096,-300.0,0.00019866,2]
[373789288,1753113039106,-5134.82164953,0.00019867,2]
[373789402,1753113040266,-526.08726007,0.00019867,2]
[373789417,1753113040391,-6956.64024296,0.00019867,2]
[373789420,1753113040402,-160.0,0.00019867,2]
[373789422,1753113040412,-371.0,0.00019867,2]
[373789424,1753113040422,-215.75719967,0.00019867,2]
[373789427,1753113040432,-839.74694734,0.00019868,2]
[373789432,1753113040441,-214.60209147,0.00019868,2]
[373789437,1753113040451,-460.0,0.00019868,2]
[373789440,1753113040460,-460.0,0.00019868,2]
[373789443,1753113040469,-460.0,0.00019868,2]
[373789447,1753113040478,-460.0,0.00019869,2]
[373789450,1753113040487,-609.64650681,0.00019869,2]
[373789453,1753113040497,-460.0,0.00019869,2]
[373789455,1753113040507,-460.0,0.00019869,2]
[373789456,1753113040516,-460.0,0.00019869,2]
[373789458,1753113040526,-460.0,0.00019869,2]
[373789459,1753113040536,-462.14548734,0.00019869,2]
[373789460,1753113040545,-503.0238588,0.00019869,2]
[373789461,1753113040555,-460.0,0.00019869,2]
[373789462,1753113040565,-460.0,0.00019869,2]
[373789463,1753113040575,-460.0,0.00019869,2]
[373789464,1753113040586,-469.26217849,0.00019869,2]
[373789465,1753113040596,-460.0,0.00019869,2]
[373789466,1753113040605,-460.0,0.00019869,2]
[373789467,1753113040615,-460.0,0.00019869,2]
[373789468,1753113040624,-460.0,0.00019869,2]
[373789469,1753113040634,-460.0,0.00019869,2]
[373789470,1753113040644,-460.0,0.00019869,2]
[373789471,1753113040653,-500.0,0.00019869,2]
[373789472,1753113040663,-460.0,0.00019869,2]
[373789473,1753113040672,-500.0,0.00019869,2]
[373789475,1753113040682,-384.54978227,0.00019869,2]
[373789477,1753113040695,-75.45021773,0.00019869,2]
[373789479,1753113040704,-460.0,0.00019869,2]
[373789481,1753113040713,-460.0,0.00019869,2]
[373789483,1753113040722,-473.92,0.00019869,2]
[373789485,1753113040732,-102.22978227,0.00019869,2]
[373789513,1753113041062,-357.77021773,0.00019869,2]
[373789514,1753113041073,-464.82552371,0.00019869,2]
[373789515,1753113041086,-460.0,0.00019869,2]
[373789516,1753113041095,-291.96268977,0.00019869,2]
[373789517,1753113041105,-460.0,0.00019869,2]
[373789518,1753113041114,-460.0,0.00019869,2]
[373789519,1753113041123,-460.0,0.00019869,2]
[373789520,1753113041133,-460.0,0.00019869,2]
[373789521,1753113041143,-460.0,0.00019869,2]
[373789522,1753113041152,-203.17,0.00019869,2]
[373789523,1753113041161,-460.0,0.00019869,2]
[373789524,1753113041171,-380.33714347,0.00019869,2]
[373789525,1753113041180,-460.0,0.00019869,2]
[373789526,1753113041189,-460.0,0.00019869,2]
[373789527,1753113041198,-460.0,0.00019869,2]
[373789528,1753113041208,-484.48,0.00019869,2]
[373789529,1753113041218,-460.0,0.00019869,2]
[373789531,1753113041228,-460.0,0.00019869,2]
[373789532,1753113041237,-466.15586867,0.00019869,2]
[373789534,1753113041246,-460.0,0.00019869,2]
[373789536,1753113041258,-460.0,0.00019869,2]
[373789538,1753113041267,-460.0,0.00019869,2]
[373789540,1753113041277,-460.0,0.00019869,2]
[373789542,1753113041286,-460.0,0.00019869,2]
[373789544,1753113041296,-460.0,0.00019869,2]
[373789546,1753113041305,-460.0,0.00019869,2]
[373789548,1753113041314,-460.0,0.00019869,2]
[373789550,1753113041324,-460.0,0.00019869,2]
[373789552,1753113041336,-460.0,0.00019869,2]
[373789553,1753113041346,-460.0,0.00019869,2]
[373789555,1753113041355,-460.0,0.00019869,2]
[373789557,1753113041365,-460.0,0.00019869,2]
[373789558,1753113041374,-460.0,0.00019869,2]
[373789560,1753113041383,-460.0,0.00019869,2]
[373789562,1753113041394,-460.0,0.00019869,2]
[373789564,1753113041403,-460.0,0.00019869,2]
[373789566,1753113041412,-460.0,0.00019869,2]
[373789567,1753113041422,-449.93737201,0.00019869,2]
[373789573,1753113041562,-460.0,0.00019869,2]
[373789576,1753113041582,-460.0,0.00019869,2]
[373789578,1753113041593,-321.29593264,0.00019869,2]
[373789580,1753113041604,-460.0,0.00019869,2]
[373789582,1753113041614,-460.0,0.00019869,2]
[373789584,1753113041624,-460.0,0.00019869,2]
[373789586,1753113041634,-460.0,0.00019869,2]
[373789588,1753113041644,-596.29907845,0.00019869,2]
[373789590,1753113041654,-460.0,0.0001987,2]
[373789592,1753113041664,-460.0,0.0001987,2]
[373789594,1753113041674,-460.0,0.0001987,2]
[373789596,1753113041684,-460.0,0.0001987,2]
[373789598,1753113041693,-450.67233722,0.0001987,2]
[373789600,1753113041703,-460.0,0.0001987,2]
[373789602,1753113041715,-460.0,0.00019871,2]
[373789604,1753113041725,-460.0,0.00019872,2]
[373789606,1753113041734,-460.0,0.00020045,2]
[373789608,1753113041744,-460.0,0.00020045,2]
[373789610,1753113041754,-460.0,0.00020045,2]
[373789612,1753113041764,-460.0,0.00020142,2]
[373789614,1753113041773,-540.0,0.00020143,2]
[373789616,1753113041784,-460.0,0.00020143,2]
[373789617,1753113041794,-473.92,0.00020143,2]
[373789618,1753113041803,-460.0,0.00020143,2]
[373789619,1753113041813,-460.0,0.00020143,2]
[373789620,1753113041823,-460.0,0.00020143,2]
[373789621,1753113041835,-460.0,0.00020143,2]
[373789622,1753113041845,-460.0,0.00020143,2]
[373789623,1753113041856,-460.0,0.00020143,2]
[373789624,1753113041866,-460.0,0.00020143,2]
[373789625,1753113041876,-460.0,0.00020143,2]
[373789626,1753113041886,-460.0,0.00020143,2]
[373789627,1753113041896,-460.0,0.00020143,2]
[373789628,1753113041906,-460.0,0.00020143,2]
[373789629,1753113041920,-460.0,0.00020143,2]
[373789630,1753113041929,-460.0,0.00020143,2]
[373789631,1753113041941,-460.0,0.00020143,2]
[373789632,1753113041951,-460.0,0.00020143,2]
[373789633,1753113041961,-460.0,0.00020143,2]
[373789634,1753113041970,-460.0,0.00020143,2]
[373789635,1753113041980,-460.0,0.00020144,2]
[373789636,1753113041994,-460.0,0.00020144,2]
[373789637,1753113042004,-460.0,0.00020145,2]
[373789638,1753113042014,-460.0,0.00020319,2]
[373789639,1753113042024,-460.0,0.00020319,2]
[373789640,1753113042034,-460.0,0.00020319,2]
[373789641,1753113042043,-473.92,0.00020417,2]
[373789642,1753113042053,-460.0,0.00020417,2]
[373789643,1753113042064,-460.0,0.00020417,2]
[373789644,1753113042074,-460.0,0.00020417,2]
[373789645,1753113042086,-460.0,0.00020417,2]
[373789646,1753113042095,-460.0,0.00020417,2]
[373789647,1753113042104,-212.3,0.00020417,2]
[373789648,1753113042114,-178.19,0.00020417,2]
[373789649,1753113042123,-460.0,0.00020417,2]
[373789650,1753113042133,-460.0,0.00020417,2]
[373789651,1753113042142,-161.92,0.00020417,2]
[373789652,1753113042153,-567.76,0.00020417,2]
[373789653,1753113042162,-474.83,0.00020417,2]
[373789654,1753113042171,-460.0,0.00020417,2]
[373789655,1753113042180,-460.0,0.00020417,2]
[373789656,1753113042190,-175.7184399,0.00020418,2]
[373789657,1753113042199,-425.67117061,0.00020418,2]
[373789658,1753113042213,-460.0,0.00020419,2]
[373789660,1753113042223,-150.62900984,0.0002045,2]
[373789662,1753113042232,-336.58038915,0.0002045,2]
[373789664,1753113042242,-548.06828774,0.0002055,2]
[373789666,1753113042251,-313.55559188,0.00020551,2]
[373789668,1753113042261,-460.0,0.00020593,2]
[373789670,1753113042271,-460.0,0.00020593,2]
[373789672,1753113042280,-460.0,0.00020593,2]
[373789674,1753113042290,-473.92,0.00020691,2]
[373789676,1753113042299,-460.0,0.00020691,2]
[373789678,1753113042309,-460.0,0.00020691,2]
[373789680,1753113042319,-460.0,0.00020691,2]
[373789682,1753113042329,-460.0,0.00020691,2]
[373789684,1753113042341,-460.0,0.00020691,2]
[373789686,1753113042351,-460.0,0.00020691,2]
[373789688,1753113042361,-460.0,0.00020691,2]
[373789690,1753113042370,-460.0,0.00020691,2]
[373789692,1753113042380,-460.0,0.00020691,2]
[373789694,1753113042390,-460.0,0.00020693,2]
[373789696,1753113042399,-460.0,0.00020702,2]
[373789698,1753113042409,-460.0,0.00020702,2]
[373789700,1753113042419,-485.101,0.00020773,2]
[373789702,1753113042429,-460.0,0.00020867,2]
[373789704,1753113042439,-460.0,0.00020867,2]
[373789706,1753113042449,-460.0,0.00020867,2]
[373789708,1753113042458,-235.961928,0.00020875,2]
[373789709,1753113042467,-473.92,0.00020965,2]
[373789710,1753113042477,-460.0,0.00020965,2]
[373789711,1753113042487,-460.0,0.00020965,2]
[373789712,1753113042496,-460.0,0.00020965,2]
[373789714,1753113042507,-460.0,0.00020965,2]
[373789716,1753113042517,-460.0,0.00020965,2]
[373789718,1753113042527,-460.0,0.00020965,2]
[373789720,1753113042536,-460.0,0.00020965,2]
[373789722,1753113042546,-273.49,0.00020965,2]
[373789725,1753113042555,-556.30314903,0.00020965,2]
[373789727,1753113042564,-460.0,0.00020967,2]
[373789728,1753113042574,-460.0,0.00020976,2]
[373789731,1753113042587,-460.0,0.00020976,2]
[373789733,1753113042596,-250.0,0.00020995,2]
[373789735,1753113042606,-460.0,0.00021141,2]
[373789737,1753113042616,-460.0,0.00021141,2]
[373789739,1753113042625,-297.34,0.00021141,2]
[373789741,1753113042635,-473.92,0.00021239,2]
[373789743,1753113042645,-460.0,0.00021239,2]
[373789745,1753113042655,-460.0,0.00021239,2]
[373789747,1753113042666,-460.0,0.00021239,2]
[373789749,1753113042675,-460.0,0.00021239,2]
[373789751,1753113042685,-460.0,0.00021239,2]
[373789753,1753113042694,-460.0,0.00021239,2]
[373789755,1753113042703,-460.0,0.00021241,2]
[373789757,1753113042713,-160.0,0.00021243,2]
[373789759,1753113042722,-460.0,0.0002125,2]
[373789760,1753113042732,-460.0,0.0002125,2]
[373789762,1753113042742,-313.55559188,0.00021334,2]
[373789764,1753113042751,-460.0,0.00021415,2]
[373789766,1753113042761,-460.0,0.00021415,2]
[373789768,1753113042771,-2377.71,0.00021503,10]
[373789770,1753113042781,-473.92,0.00021513,2]
[373789772,1753113042790,-460.0,0.00021513,2]
[373789774,1753113042800,-460.0,0.00021513,2]
[373789776,1753113042809,-460.0,0.00021513,2]
[373789778,1753113042819,-460.0,0.00021513,2]
[373789780,1753113042828,-460.0,0.00021513,2]
[373789782,1753113042840,-460.0,0.00021513,2]
[373789784,1753113042850,-460.0,0.00021515,2]
[373789786,1753113042860,-460.0,0.00021524,2]
[373789788,1753113042870,-460.0,0.00021524,2]
[373789790,1753113042879,-500.0,0.00021563,2]
[373789792,1753113042889,-2853.25,0.00021625,10]
[373789794,1753113042898,-420.0,0.00021635,2]
[373789796,1753113042908,-460.0,0.00021689,2]
[373789798,1753113042922,-460.0,0.00021689,2]
[373789801,1753113042935,-522.0,0.00021739,2]
[373789803,1753113042947,-473.92,0.00021787,2]
[373789806,1753113042961,-460.0,0.00021787,2]
[373789808,1753113042974,-460.0,0.00021787,2]
[373789810,1753113042990,-460.0,0.00021787,2]
[373789813,1753113043003,-153.00079626,0.00021787,2]
[373789815,1753113043014,-460.0,0.00021787,2]
[373789817,1753113043024,-460.0,0.00021787,2]
[373789819,1753113043035,-460.0,0.00021789,2]
[373789821,1753113043047,-260.0,0.00021791,2]
[373789823,1753113043059,-460.0,0.00021798,2]
[373789826,1753113043070,-460.0,0.00021963,2]
[373789828,1753113043083,-460.0,0.00021963,2]
[373789830,1753113043094,-473.92,0.00022061,2]
[373789832,1753113043105,-460.0,0.00022061,2]
[373789834,1753113043117,-460.0,0.00022061,2]
[373789837,1753113043129,-460.0,0.00022061,2]
[373789839,1753113043141,-460.0,0.00022061,2]
[373789841,1753113043153,-460.0,0.00022061,2]
[373789843,1753113043164,-460.0,0.00022063,2]
[373789846,1753113043176,-460.0,0.00022072,2]
[373789848,1753113043187,-313.55559188,0.00022116,2]
[373789850,1753113043199,-460.0,0.00022237,2]
[373789852,1753113043211,-460.0,0.00022237,2]
[373789855,1753113043222,-289.0,0.00022301,7]
[373789856,1753113043233,-473.92,0.00022335,2]
[373789859,1753113043244,-460.0,0.00022335,2]
[373789862,1753113043255,-460.0,0.00022335,2]
[373789864,1753113043266,-460.0,0.00022335,2]
[373789866,1753113043280,-460.0,0.00022335,2]
[373789868,1753113043291,-530.820329,0.00022335,2]
[373789870,1753113043302,-460.0,0.00022337,2]
[373789871,1753113043313,-420.0,0.00022339,2]
[373789872,1753113043323,-460.0,0.00022346,2]
[373789873,1753113043336,-460.0,0.00022511,2]
[373789875,1753113043348,-460.0,0.00022511,2]
[373789877,1753113043359,-186.864103,0.00022603,2]
[373789880,1753113043371,-473.92,0.00022609,2]
[373789882,1753113043382,-460.0,0.00022609,2]
[373789884,1753113043394,-460.0,0.00022609,2]
[373789886,1753113043405,-460.0,0.00022609,2]
[373789888,1753113043415,-460.0,0.00022611,2]
[373789890,1753113043425,-460.0,0.0002262,2]
[373789892,1753113043435,-460.0,0.00022785,2]
[373789895,1753113043447,-460.0,0.00022785,2]
[373789897,1753113043457,-151.0,0.00022871,6]
[373789899,1753113043468,-473.92,0.00022883,2]
[373789901,1753113043479,-460.0,0.00022883,2]
[373789903,1753113043490,-387.28084004,0.00022883,2]
[373789905,1753113043502,-504.71,0.00022883,2]
[373789907,1753113043512,-460.0,0.00022885,2]
[373789910,1753113043524,-504.62,0.0002289,6]
[373789912,1753113043536,-460.0,0.00022894,2]
[373789915,1753113043556,-313.55559188,0.00022898,2]
[373789917,1753113043570,-284.90544308,0.00022973,2]
[373789920,1753113043583,-500.0,0.00022973,2]
[373789922,1753113043597,-500.0,0.00022973,2]
[373789924,1753113043610,-500.0,0.00022973,2]
[373789927,1753113043625,-999.999999,0.0002298,2]
[373789929,1753113043639,-504.62,0.0002299,2]
[373789932,1753113043651,-261.93,0.0002299,3]
[373789934,1753113043664,-785.81,0.0002299,3]
[373789936,1753113043676,-3251.98,0.00022999,2]
[373789939,1753113043687,-9810.06450645,0.00023,2]
[373789940,1753113043698,-28374.26107473,0.00023,2]
[373789943,1753113043708,-160.0,0.00023,2]
[373789945,1753113043718,-460.0,0.00023059,2]
[373789947,1753113043728,-460.0,0.00023059,2]
[373789949,1753113043738,-504.62,0.0002309,6]
[373789951,1753113043749,-500.0,0.0002313,2]
[373789953,1753113043760,-473.92,0.00023157,2]
[373789955,1753113043772,-460.0,0.00023157,2]
[373789957,1753113043784,-460.0,0.00023159,2]
[373789960,1753113043795,-460.0,0.00023168,2]
[373789962,1753113043808,-504.62,0.0002319,6]
[373789964,1753113043821,-500.0,0.00023208,2]
[373789966,1753113043832,-504.62,0.0002329,7]
[373789968,1753113043843,-1088.51,0.000233,2]
[373789970,1753113043853,-460.0,0.00023333,2]
[373789973,1753113043864,-480.25920275,0.00023333,2]
[373789975,1753113043875,-595.62,0.00023359,3]
[373789977,1753113043886,-151.0,0.00023369,6]
[373789979,1753113043896,-504.62,0.0002339,3]
[373789981,1753113043909,-500.0,0.000234,2]
[373789984,1753113043921,-500.0,0.000234,2]
[373789986,1753113043932,-500.0,0.000234,2]
[373789988,1753113043943,-500.0,0.000234,2]
[373789990,1753113043953,-500.0,0.000234,2]
[373789992,1753113043963,-806.29,0.00023424,3]
[373789994,1753113043974,-473.92,0.00023431,2]
[373789996,1753113043985,-460.0,0.00023431,2]
[373789999,1753113043998,-184.04,0.00023431,2]
[373790001,1753113044008,-571.42993414,0.00023433,2]
[373790003,1753113044018,-151.0,0.00023434,2]
[373790005,1753113044030,-151.0,0.00023434,2]
[373790007,1753113044041,-151.0,0.00023434,2]
[373790009,1753113044052,-151.0,0.00023434,2]
[373790012,1753113044063,-151.0,0.00023434,2]
[373790014,1753113044074,-151.0,0.00023434,2]
[373790016,1753113044085,-151.0,0.00023434,2]
[373790018,1753113044097,-151.0,0.00023434,2]
[373790020,1753113044108,-151.0,0.00023434,2]
[373790022,1753113044119,-151.0,0.00023434,2]
[373790025,1753113044129,-151.0,0.00023434,2]
[373790027,1753113044140,-151.0,0.00023434,2]
[373790029,1753113044153,-151.0,0.00023434,2]
[373790032,1753113044165,-151.0,0.00023434,2]
[373790033,1753113044176,-151.0,0.00023434,2]
[373790035,1753113044188,-282.14169911,0.00023434,2]
[373790038,1753113044200,-151.0,0.00023434,2]
[373790040,1753113044211,-151.0,0.00023434,2]
[373790042,1753113044224,-151.0,0.00023434,2]
[373790044,1753113044235,-215.0738,0.00023434,2]
[373790046,1753113044247,-151.0,0.00023434,2]
[373790049,1753113044258,-151.0,0.00023434,2]
[373790051,1753113044269,-151.0,0.00023434,2]
[373790053,1753113044281,-151.0,0.00023434,2]
[373790055,1753113044292,-151.0,0.00023434,2]
[373790057,1753113044303,-151.0,0.00023434,2]
[373790060,1753113044315,-151.0,0.00023434,2]
[373790062,1753113044326,-151.0,0.00023434,2]
[373790064,1753113044340,-460.0,0.00023442,2]
[373790066,1753113044351,-500.0,0.00023456,2]
[373790068,1753113044363,-504.70519332,0.0002349,4]
[373790071,1753113044373,-500.0,0.00023521,2]
[373790073,1753113044384,-1003.76840278,0.00023521,2]
[373790075,1753113044395,-587.0,0.00023561,2]
[373790077,1753113044406,-460.0,0.00023607,2]
[373790079,1753113044417,-500.0,0.00023618,2]
[373790081,1753113044428,-500.0,0.00023642,2]
[373790084,1753113044439,-268.76,0.00023661,3]
[373790086,1753113044450,-500.0,0.00023664,2]
[373790088,1753113044460,-500.0,0.00023671,2]
[373790090,1753113044472,-313.55559188,0.0002368,2]
[373790092,1753113044482,-473.92,0.00023705,2]
[373790100,1753113044622,-460.0,0.00023705,2]
[373790101,1753113044668,-460.0,0.00023716,2]
[373790102,1753113044678,-648.0,0.00023754,2]
[373790103,1753113044688,-2156.0,0.00023754,2]
[373790104,1753113044697,-968.0,0.00023754,2]
[373790105,1753113044707,-500.0,0.00023755,2]
[373790106,1753113044717,-500.0,0.00023756,2]
[373790107,1753113044727,-1000.0,0.000238,12]
[373790108,1753113044737,-298.52,0.000238,7]
[373790109,1753113044746,-168.0,0.00023824,2]
[373790110,1753113044756,-151.0,0.00023866,6]
[373790111,1753113044765,-476.68813802,0.00023881,2]
[373790112,1753113044775,-473.37436611,0.000239,2]
[373790113,1753113044784,-151.0,0.000239,9]
[373790114,1753113044794,-1000.0,0.00023948,2]
[373790116,1753113044803,-1000.0,0.00023948,2]
[373790118,1753113044812,-1000.0,0.00023948,2]
[373790120,1753113044822,-693.2450441,0.00023948,2]
[373790122,1753113044832,-275.1462,0.0002396,2]
[373790124,1753113044841,-540.67341357,0.0002396,2]
[373790126,1753113044851,-302.772,0.00023963,2]
[373790128,1753113044860,-211.9404,0.00023963,2]
[373790130,1753113044870,-473.92,0.00023979,2]
[373790132,1753113044880,-586.09807439,0.00023979,2]
[373790134,1753113044889,-460.0,0.0002399,2]
[373790136,1753113044898,-153.025911,0.00024057,2]
[373790138,1753113044907,-540.67341357,0.0002406,2]
[373790140,1753113044917,-163.62589017,0.00024082,2]
[373790142,1753113044926,-151.0,0.000241,7]
[373790144,1753113044936,-540.67341357,0.0002416,2]
[373790146,1753113044947,-1000.0,0.00024166,2]
[373790148,1753113044956,-1000.0,0.0002419,2]
[373790150,1753113044966,-1000.0,0.00024212,2]
[373790152,1753113044975,-1000.0,0.00024219,2]
[373790154,1753113044985,-250.0,0.00024239,2]
[373790156,1753113044997,-473.92,0.00024253,2]
[373790158,1753113045007,-540.67341357,0.0002426,2]
[373790160,1753113045016,-522.57770926,0.00024264,2]
[373790162,1753113045025,-357.0,0.00024342,2]
[373790164,1753113045034,-5000.0,0.00024357,3]
[373790166,1753113045043,-523.86,0.0002436,3]
[373790168,1753113045052,-151.0,0.00024364,7]
[373790170,1753113045062,-357.0,0.00024367,2]
[373790172,1753113045072,-600.0,0.00024383,2]
[373790174,1753113045082,-163.02906031,0.00024384,2]
[373790176,1753113045092,-163.62589017,0.00024384,2]
[373790178,1753113045101,-160.0,0.000244,3]
[373790180,1753113045110,-160.0,0.000244,3]
[373790182,1753113045120,-151.0,0.000244,9]
[373790184,1753113045130,-313.55559188,0.00024463,2]
[373790186,1753113045139,-1503.5032217,0.00024496,2]
[373790188,1753113045149,-1500.0,0.00024496,2]
[373790190,1753113045158,-613.72738664,0.00024496,2]
[373790192,1753113045168,-473.92,0.00024527,2]
[373790194,1753113045178,-5099.0,0.00024545,2]
[373790196,1753113045187,-151.0,0.000246,8]
[373790198,1753113045195,-357.0,0.00024634,2]
[373790200,1753113045205,-600.0,0.00024637,2]
[373790202,1753113045215,-986.18959625,0.00024714,2]
[373790204,1753113045225,-500.0,0.00024738,2]
[373790206,1753113045234,-1500.0,0.0002476,2]
[373790208,1753113045244,-1500.0,0.00024767,2]
[373790210,1753113045254,-623.57,0.000248,15]
[373790212,1753113045264,-5856.07556498,0.000248,2]
[373790214,1753113045274,-727.49714382,0.000248,2]
[373790216,1753113045284,-473.92,0.00024801,2]
[373790218,1753113045293,-223.0315306,0.00024803,2]
[373790220,1753113045303,-357.0,0.00024814,2]
[373790222,1753113045313,-169.407955,0.00024822,8]
[373790224,1753113045323,-151.0,0.00024861,7]
[373790226,1753113045332,-357.0,0.00024881,2]
[373790228,1753113045342,-1119.09325256,0.000249,2]
[373790230,1753113045351,-1830.52,0.000249,7]
[373790232,1753113045361,-153.025911,0.000249,8]
[373790234,1753113045371,-15887.31732787,0.000249,2]
[373790243,1753113045445,-4812.99833472,0.000249,2]
[373790245,1753113045456,-6819.65154272,0.000249,2]
[373790248,1753113045467,-10281.90250854,0.000249,2]
[373790250,1753113045479,-20508.11472852,0.000249,2]
[373790252,1753113045490,-19756.36326492,0.000249,2]
[373790254,1753113045502,-220796.72737137,0.000249,2]
[373790260,1753113045550,-460.0,0.00019869,2]
[373790262,1753113045559,-460.0,0.00020143,2]
[373790264,1753113045568,-93993.89124069,0.000249,2]
[373790266,1753113045579,-4281.25494782,0.000249,2]
[373790269,1753113045591,-20113.17636697,0.000249,2]
[373790284,1753113045742,1000.0,0.0002739,120]
[373790346,1753113046833,-1981.43,0.0002489,10]
[373790347,1753113046843,-4039.07,0.000249,2]
[373790349,1753113046924,-2689.14263416,0.000249,2]
[373790350,1753113046938,-827.21057423,0.000249,2]
[373790351,1753113046949,-718.67234176,0.000249,2]
[373790954,1753113054333,1000.0,0.0002739,120]
[373792799,1753113073290,1027.0,0.0002739,120]
[373793316,1753113116712,283.352004,0.00027397,120]
[373793318,1753113483990,164.18082,0.00013699,2]
[373793320,1753113561461,1697.0,0.00027397,120]